fUSD/lending_fUSD_20260127
["ID","MTS","AMOUNT","RATE_DAILY","PERIOD"]
[403719918,1769508646988,-250.0,0.00020399,2]
[403719919,1769508646997,-250.0,0.00020399,2]
[403719920,1769508647006,-250.0,0.00020399,2]
[403719921,1769508647015,-1000.0,0.00020399,2]
[403719922,1769508647024,-250.0,0.00020399,2]
[403719923,1769508647033,-1000.0,0.00020399,2]
[403719924,1769508647042,-250.0,0.00020399,2]
[403719925,1769508647052,-1000.0,0.00020399,2]
[403719926,1769508647061,-250.0,0.00020399,2]
[403719927,1769508647070,-1000.0,0.00020399,2]
[403719928,1769508647080,-250.0,0.00020399,2]
[403719929,1769508647089,-1000.0,0.00020399,2]
[403719930,1769508647098,-250.0,0.00020399,2]
[403719931,1769508647107,-1000.0,0.00020399,2]
[403719932,1769508647117,-250.0,0.00020399,2]
[403719933,1769508647131,-1000.0,0.00020399,2]
[403719934,1769508647156,-290.39862941,0.00020399,2]
[403719935,1769508647169,-1000.0,0.00020399,2]
[403719936,1769508647183,-250.0,0.00020399,2]
[403719937,1769508647192,-1000.0,0.00020399,2]
[403719938,1769508647204,-250.0,0.00020399,2]
[403719939,1769508647215,-823.77908852,0.00020399,2]
[403719940,1769508647227,-500.0,0.00020399,2]
[403719941,1769508647237,-500.0,0.00020399,2]
[403719942,1769508647248,-152.18170893,0.00020399,2]
[403719943,1769508647261,-500.0,0.00020399,2]
[403719944,1769508647271,-201.93286099,0.00020399,2]
[403719945,1769508647283,-1000.0,0.00020399,2]
[403719946,1769508647292,-500.0,0.00020399,2]
[403719947,1769508647303,-500.0,0.00020399,2]
[403719948,1769508647314,-250.0,0.00020399,2]
[403719949,1769508647324,-500.0,0.00020399,2]
[403719950,1769508647334,-422.25325814,0.00020399,2]
[403719951,1769508647343,-250.0,0.00020399,2]
[403719952,1769508647352,-500.0,0.00020399,2]
[403719953,1769508647361,-250.0,0.00020399,2]
[403719954,1769508647371,-500.0,0.00020399,2]
[403719955,1769508647380,-250.0,0.00020399,2]
[403719956,1769508647389,-250.0,0.00020399,2]
[403719957,1769508647399,-500.0,0.00020399,2]
[403719958,1769508647408,-250.0,0.00020399,2]
[403719959,1769508647417,-250.0,0.00020399,2]
[403719960,1769508647426,-1000.0,0.00020399,2]
[403719961,1769508647436,-500.0,0.00020399,2]
[403719962,1769508647444,-1000.0,0.00020399,2]
[403719963,1769508647719,-250.0,0.00020399,2]
[403719964,1769508647729,-250.0,0.00020399,2]
[403719965,1769508647739,-155.07057563,0.00020399,2]
[403719966,1769508647748,-262.30252765,0.00020399,2]
[403719967,1769508647758,-1000.0,0.00020399,2]
[403719968,1769508647767,-250.0,0.00020399,2]
[403719969,1769508647777,-250.0,0.00020399,2]
[403719970,1769508647786,-1000.0,0.00020399,2]
[403719971,1769508647796,-250.0,0.00020399,2]
[403719972,1769508647805,-1000.0,0.00020399,2]
[403719973,1769508647814,-250.0,0.00020399,2]
[403719974,1769508647824,-1000.0,0.00020399,2]
[403719975,1769508647832,-250.0,0.00020399,2]
[403719976,1769508647841,-1000.0,0.00020399,2]
[403719977,1769508647850,-1000.0,0.00020399,2]
[403719978,1769508647859,-250.0,0.00020399,2]
[403719979,1769508647868,-1000.0,0.00020399,2]
[403719980,1769508647878,-1000.0,0.00020399,2]
[403719981,1769508647887,-322.6107,0.00020399,2]
[403719982,1769508647897,-3543.0,0.00020399,2]
[403719983,1769508647907,-2110.69279367,0.00020399,2]
[403719984,1769508647916,-695.39793187,0.00020399,2]
[403719985,1769508647925,-1000.0,0.00020428,2]
[403719986,1769508647935,-2351.0,0.00020436,2]
[403719987,1769508647944,-225.19870368,0.00020439,2]
[403719988,1769508647952,-500.0,0.00020439,2]
[403719989,1769508647960,-500.0,0.00020439,2]
[403719990,1769508647968,-500.0,0.00020439,2]
[403719991,1769508647989,-150.0,0.00020439,2]
[403719992,1769508648003,-500.0,0.00020439,2]
[403719993,1769508648014,-240.31746147,0.00020439,2]
[403719994,1769508648024,-150.0,0.00020439,2]
[403719995,1769508648035,-150.0,0.00020439,2]
[403719996,1769508648045,-500.0,0.00020439,2]
[403719997,1769508648055,-150.0,0.00020439,2]
[403719998,1769508648065,-209.40437684,0.00020454,2]
[403719999,1769508648075,-500.0,0.00020494,2]
[403720000,1769508648084,-500.0,0.00020494,2]
[403720001,1769508648093,-500.0,0.00020494,2]
[403720002,1769508648102,-150.0,0.00020494,2]
[403720003,1769508648111,-500.0,0.00020494,2]
[403720004,1769508648120,-150.0,0.00020494,2]
[403720005,1769508648130,-150.0,0.00020494,2]
[403720006,1769508648140,-180.66467248,0.00020494,2]
[403720007,1769508648150,-150.0,0.00020494,2]
[403720008,1769508648159,-217.15233878,0.00020509,2]
[403720009,1769508648177,-154.25,0.00020548,2]
[403720010,1769508648187,-500.0,0.00020548,2]
[403720011,1769508648197,-500.0,0.00020548,2]
[403720012,1769508648206,-500.0,0.00020548,2]
[403720013,1769508648216,-150.0,0.00020548,2]
[403720014,1769508648226,-500.0,0.00020548,2]
[403720015,1769508648237,-150.0,0.00020548,2]
[403720016,1769508648248,-150.0,0.00020548,2]
[403720017,1769508648259,-200.0,0.00020548,2]
[403720018,1769508648270,-225.18697532,0.00020564,2]
[403720019,1769508648280,-166.66,0.00020577,2]
[403720020,1769508648291,-500.0,0.00020603,2]
[403720021,1769508648300,-500.0,0.00020603,2]
[403720022,1769508648311,-500.0,0.00020603,2]
[403720023,1769508648321,-150.0,0.00020603,2]
[403720024,1769508648332,-182.09898654,0.00020603,2]
[403720025,1769508648343,-197.34853095,0.00020603,2]
[403720026,1769508648352,-184.73664133,0.00020603,2]
[403720027,1769508648364,-233.51889341,0.00020619,2]
[403720028,1769508648374,-500.0,0.00020658,2]
[403720029,1769508648386,-500.0,0.00020658,2]
[403720030,1769508648395,-363.68602763,0.00020658,2]
[403720031,1769508648405,-250.0,0.00020658,2]
[403720032,1769508648415,-242.15909246,0.00020674,2]
[403720033,1769508648424,-500.0,0.00020713,2]
[403720034,1769508648435,-349.53356316,0.00020713,2]
[403720035,1769508648445,-251.11897888,0.00020729,2]
[403720036,1769508648456,-500.0,0.00020768,2]
[403720037,1769508648466,-260.4103811,0.00020784,2]
[403720038,1769508648475,-2831.0,0.00020786,2]
[403720039,1769508648485,-1042.7058965,0.00020791,2]
[403720040,1769508648495,-1083.3612952,0.00020792,2]
[403720041,1769508648504,-500.0,0.00020822,2]
[403720042,1769508648514,-270.0455652,0.00020839,2]
[403720043,1769508648523,-427.68,0.0002085,2]
[403720044,1769508648533,-188.13086915,0.00020877,2]
[403720045,1769508648543,-280.03725112,0.00020894,2]
[403720046,1769508648552,-181.08010149,0.00020947,2]
[403720047,1769508648562,-854.2589148,0.00020947,2]
[403720048,1769508648572,-290.39862941,0.00020949,2]
[403720049,1769508648582,-503.0,0.00020988,4]
[403720050,1769508648591,-449.52,0.00021,7]
[403720051,1769508648601,-301.1433787,0.00021004,2]
[403720052,1769508648610,-150.00248404,0.00021044,12]
[403720053,1769508648620,-2000.0,0.000211,2]
[403720054,1769508648629,-2831.0,0.00021171,2]
[403720055,1769508648638,-166.66,0.00021177,2]
[403720056,1769508648649,-691.59834515,0.0002143,2]
[403720057,1769508648659,-187.78006525,0.00021495,2]
[403720058,1769508648668,-885.86649465,0.00021495,2]
[403720059,1769508648678,-2831.0,0.00021568,2]
[403720060,1769508648688,-750.4571879,0.00021696,2]
[403720061,1769508648697,-503.0,0.00021735,5]
[403720062,1769508648706,-427.68,0.00021756,2]
[403720063,1769508648716,-551.5,0.00021763,2]
[403720064,1769508648725,-334.5472959,0.00021768,2]
[403720065,1769508648735,-157.68,0.00021788,2]
[403720066,1769508648744,-5000.0,0.00021918,2]
[403720067,1769508648755,-151.0,0.00021918,2]
[403720068,1769508648764,-151.0,0.00021918,2]
[403720069,1769508648774,-151.0,0.00021918,2]
[403720070,1769508648783,-151.0,0.00021918,2]
[403720071,1769508648793,-252.26255728,0.00021973,2]
[403720072,1769508648803,-500.0,0.00021973,2]
[403720073,1769508648812,-500.0,0.00021973,2]
[403720074,1769508648822,-500.0,0.00021973,2]
[403720075,1769508648831,-1546.97,0.00022,7]
[403720076,1769508648841,-798.67506692,0.00022,7]
[403720077,1769508648850,-8449.89796279,0.00022004,2]
[403720078,1769508648860,-194.72792766,0.00022043,2]
[403720079,1769508648870,-918.64355495,0.00022043,2]
[403720080,1769508648879,-900.52,0.00022051,2]
[403720081,1769508648888,-3662.994717,0.00022097,2]
[403720082,1769508648899,-2000.0,0.000221,2]
[403720083,1769508648909,-823.0,0.00022101,2]
[403720084,1769508648919,-196.3,0.00022287,2]
[403720085,1769508648929,-150.00248404,0.00022352,17]
[403720086,1769508648939,-3059.0,0.00022432,2]
[403720087,1769508648948,-503.0,0.00022482,6]
[403720088,1769508648958,-1000.0,0.00022521,2]
[403720089,1769508648967,-167.4496325,0.00022521,2]
[403720090,1769508648977,-150.99,0.00022562,2]
[403720091,1769508648986,-160.97136524,0.00022591,2]
[403720092,1769508648995,-952.63336648,0.00022591,2]
[403720093,1769508649005,-1000.0,0.00022697,2]
[403720094,1769508649014,-2831.0,0.0002289,3]
[403720095,1769508649023,-636.50124839,0.00023,7]
[403720096,1769508649034,-817.3245978,0.00023012,2]
[403720097,1769508649043,-483.49053996,0.00023068,2]
[403720098,1769508649052,-346.92554585,0.00023137,2]
[403720099,1769508649062,-578.20924308,0.00023138,2]
[403720100,1769508649071,-301.1433787,0.00023138,2]
[403720101,1769508649081,-3543.0,0.00023138,2]
[403720102,1769508649090,-721.12765535,0.00023138,2]
[403720103,1769508649099,-987.88080104,0.00023139,2]
[403720104,1769508649109,-503.0,0.00023229,6]
[403720105,1769508649119,-157.68,0.00023241,2]
[403720106,1769508649128,-2396.36451722,0.00023365,7]
[403720107,1769508649137,-2000.0,0.000234,2]
[403720108,1769508649147,-1000.0,0.000234,2]
[403720109,1769508649156,-161.42594505,0.00023422,2]
[403720110,1769508649174,-1166.77,0.00023435,2]
[403720111,1769508649184,-1333.0,0.00023638,2]
[403720112,1769508649193,-3477.0,0.00023638,2]
[403720113,1769508649203,-1408.0,0.00023638,2]
[403720114,1769508649213,-1287.961,0.00023638,2]
[403720115,1769508649222,-303.251,0.00023638,2]
[403720116,1769508649231,-150.00248404,0.00023661,21]
[403720117,1769508649242,-1024.43239068,0.00023687,2]
[403720118,1769508649254,-551.5,0.00023716,2]
[403720119,1769508649264,-1204.0,0.00023724,2]
[403720120,1769508649274,-916.0,0.00023724,2]
[403720121,1769508649284,-4831.0,0.00023724,2]
[403720122,1769508649294,-2442.0,0.00023724,2]
[403720123,1769508649304,-567.0,0.00023724,2]
[403720124,1769508649316,-200.0,0.00023826,2]
[403720125,1769508649327,-503.0,0.00023976,7]
[403720126,1769508649337,-900.52,0.00024056,2]
[403720127,1769508649346,-1152.0,0.0002414,2]
[403720128,1769508649355,-444.68,0.00024225,30]
[403720129,1769508649366,-1062.33638913,0.00024235,2]
[403720130,1769508649376,-2831.0,0.0002426,3]
[403720131,1769508649387,-219.0,0.00024325,2]
[403720132,1769508649396,-383.0,0.00024365,2]
[403720133,1769508649406,-383.0,0.00024407,2]
[403720134,1769508649417,-383.0,0.00024424,2]
[403720135,1769508649429,-383.0,0.00024432,2]
[403720136,1769508649438,-200.0,0.00024433,2]
[403720137,1769508649447,-383.0,0.00024458,2]
[403720138,1769508649458,-383.0,0.00024469,2]
[403720139,1769508649468,-8449.89796279,0.00024475,2]
[403720140,1769508649478,-383.0,0.00024488,2]
[403720141,1769508649488,-383.0,0.0002449,2]
[403720142,1769508649499,-383.0,0.00024503,2]
[403720143,1769508649509,-359.76179104,0.00024506,2]
[403720144,1769508649519,-383.0,0.00024529,2]
[403720145,1769508649531,-345.63798283,0.00024532,2]
[403720146,1769508649540,-383.0,0.00024535,2]
[403720147,1769508649549,-383.0,0.00024538,2]
[403720148,1769508649559,-383.0,0.00024549,2]
[403720149,1769508649568,-200.0,0.00024563,2]
[403720150,1769508649578,-383.0,0.00024564,2]
[403720151,1769508649587,-383.0,0.00024615,2]
[403720152,1769508649596,-219.0,0.00024622,2]
[403720153,1769508649605,-383.0,0.00024622,2]
[403720154,1769508649614,-383.0,0.0002464,2]
[403720155,1769508649623,-449.94768,0.0002465,2]
[403720156,1769508649633,-449.94769,0.0002465,2]
[403720157,1769508649642,-449.94769,0.0002465,2]
[403720158,1769508649652,-1000.0,0.00024658,2]
[403720159,1769508649661,-151.0,0.00024658,2]
[403720160,1769508649671,-151.0,0.00024658,2]
[403720161,1769508649682,-151.0,0.00024658,2]
[403720162,1769508649693,-150.0,0.00024658,2]
[403720163,1769508649702,-383.0,0.00024658,2]
[403720164,1769508649713,-383.0,0.00024658,2]
[403720165,1769508649723,-383.0,0.00024663,2]
[403720166,1769508649734,-383.0,0.00024684,2]
[403720167,1769508649745,-157.68,0.00024694,2]
[403720168,1769508649754,-383.0,0.00024696,2]
[403720169,1769508649764,-383.0,0.00024697,2]
[403720170,1769508649773,-200.0,0.000247,2]
[403720171,1769508649782,-200.0,0.00024701,2]
[403720172,1769508649791,-383.0,0.00024705,2]
[403720173,1769508649800,-383.0,0.00024722,2]
[403720174,1769508649810,-503.0,0.00024723,8]
[403720175,1769508649819,-383.0,0.00024724,2]
[403720176,1769508649828,-383.0,0.00024765,2]
[403720177,1769508649837,-1101.64283553,0.00024783,2]
[403720178,1769508649847,-383.0,0.00024784,2]
[403720179,1769508649858,-1000.0,0.00024794,2]
[403720180,1769508649867,-500.0,0.00024795,2]
[403720181,1769508649876,-200.0,0.00024808,2]
[403720182,1769508649886,-383.0,0.00024841,2]
[403720183,1769508649895,-340.66224518,0.0002485,2]
[403720184,1769508649906,-383.0,0.00024856,2]
[403720185,1769508649915,-383.0,0.00024882,2]
[403720186,1769508649925,-383.0,0.00024887,2]
[403720187,1769508649935,-383.0,0.0002489,2]
[403720188,1769508649944,-285.14069897,0.000249,2]
[403720189,1769508649953,-1000.0,0.000249,2]
[403720190,1769508649963,-1003.85001295,0.000249,2]
[403720191,1769508649972,-151.0,0.000249,7]
[403720192,1769508649981,-151.0,0.000249,7]
[403720193,1769508649991,-151.0,0.000249,7]
[403720194,1769508650001,-151.0,0.000249,7]
[403720195,1769508650011,-401.378532,0.000249,7]
[403720196,1769508650020,-401.378532,0.000249,7]
[403720197,1769508650029,-401.378532,0.000249,7]
[403720198,1769508650038,-401.378532,0.000249,7]
[403720199,1769508650047,-151.0,0.000249,7]
[403720200,1769508650056,-158.56456,0.000249,7]
[403720201,1769508650066,-158.56456,0.000249,7]
[403720202,1769508650075,-158.56456,0.000249,7]
[403720203,1769508650086,-158.56456,0.000249,7]
[403720204,1769508650095,-151.0,0.000249,7]
[403720205,1769508650103,-151.0,0.000249,7]
[403720206,1769508650113,-172.636096,0.000249,7]
[403720207,1769508650122,-151.0,0.000249,7]
[403720208,1769508650131,-201.901907,0.000249,7]
[403720209,1769508650140,-201.901907,0.000249,7]
[403720210,1769508650149,-201.901907,0.000249,7]
[403720211,1769508650158,-201.901907,0.000249,7]
[403720212,1769508650168,-1266.0,0.000249,2]
[403720213,1769508650180,-1266.0,0.000249,2]
[403720214,1769508650189,-1266.0,0.000249,2]
[403720215,1769508650198,-1266.0,0.000249,2]
[403720216,1769508650208,-1266.0,0.000249,2]
[403720217,1769508650218,-1266.0,0.000249,2]
[403720218,1769508650227,-1266.0,0.000249,2]
[403720219,1769508650236,-151.0,0.000249,7]
[403720220,1769508650246,-151.0,0.000249,7]
[403720221,1769508650255,-152.588777,0.000249,7]
[403720222,1769508650264,-605148.993011,0.000249,3]
[403720223,1769508650274,-505.68,0.000249,2]
[403720224,1769508650284,-449.94768,0.000249,2]
[403720225,1769508650292,-449.94769,0.000249,2]
[403720226,1769508650302,-449.94769,0.000249,2]
[403720227,1769508650311,-800.0,0.000249,9]
[403720228,1769508650319,-800.0,0.000249,9]
[403720229,1769508650329,-800.0,0.000249,9]
[403720230,1769508650338,-800.0,0.000249,9]
[403720231,1769508650347,-800.0,0.000249,9]
[403720232,1769508650355,-800.0,0.000249,9]
[403720233,1769508650364,-800.0,0.000249,9]
[403720234,1769508650373,-800.0,0.000249,9]
[403720235,1769508650382,-319.739058,0.000249,7]
[403720236,1769508650391,-319.739058,0.000249,7]
[403720237,1769508650400,-319.739058,0.000249,7]
[403720238,1769508650409,-319.739058,0.000249,7]
[403720239,1769508650418,-531.291642,0.000249,7]
[403720240,1769508650427,-531.291642,0.000249,7]
[403720241,1769508650436,-531.291642,0.000249,7]
[403720242,1769508650445,-531.291642,0.000249,7]
[403720243,1769508650454,-697.949439,0.000249,7]
[403720244,1769508650463,-697.949439,0.000249,7]
[403720245,1769508650472,-697.949439,0.000249,7]
[403720246,1769508650481,-697.949439,0.000249,7]
[403720247,1769508650490,-2831.0,0.00024915,3]
[403720248,1769508650500,-1000.0,0.00024967,2]
[403720249,1769508650512,-150.00248404,0.00024969,25]
[403720250,1769508650522,-378.0,0.00025034,2]
[403720251,1769508650532,-378.0,0.00025045,2]
[403720252,1769508650542,-200.0,0.00025075,2]
[403720253,1769508650551,-378.0,0.00025184,7]
[403720254,1769508650560,-200.0,0.0002521,2]
[403720255,1769508650569,-378.0,0.00025213,2]
[403720256,1769508650578,-200.0,0.00025216,2]
[403720257,1769508650587,-378.0,0.00025231,2]
[403720258,1769508650595,-2323.0,0.00025235,3]
[403720259,1769508650604,-1142.40362045,0.00025331,2]
[403720260,1769508650613,-225.23460546,0.00025339,48]
[403720261,1769508650626,-151.0,0.000254,7]
[403720262,1769508650637,-151.0,0.000254,7]
[403720263,1769508650646,-200.0,0.00025409,2]
[403720264,1769508650655,-151.0,0.00025467,7]
[403720265,1769508650664,-5888.0,0.00025467,7]
[403720266,1769508650674,-503.0,0.0002547,8]
[403720267,1769508650683,-1546.97,0.000255,7]
[403720268,1769508650692,-551.5,0.00025669,2]
[403720269,1769508650702,-691.59834515,0.0002579,2]
[403720270,1769508650712,-1102.0,0.0002584,2]
[403720271,1769508650723,-373.07297731,0.00025875,2]
[403720272,1769508650733,-3543.0,0.00025877,2]
[403720273,1769508650742,-633.72644592,0.00025877,2]
[403720274,1769508650754,-1184.6725544,0.00025879,2]
[403720275,1769508650763,-1312.856495,0.00025885,7]
[403720276,1769508650773,-1312.856495,0.00025885,7]
[403720277,1769508650782,-1312.856495,0.00025885,7]
[403720278,1769508650791,-1312.856495,0.00025885,7]
[403720279,1769508650799,-151.0,0.00025885,7]
[403720280,1769508650808,-151.0,0.00025885,7]
[403720281,1769508650817,-151.0,0.00025885,7]
[403720282,1769508650826,-283.687498,0.00025885,7]
[403720283,1769508650835,-150.0,0.00025885,2]
[403720284,1769508650844,-213.0,0.00025885,2]
[403720285,1769508650854,-150.0,0.00025885,2]
[403720286,1769508650863,-200.0,0.00025885,2]
[403720287,1769508650872,-150.16,0.00025885,2]
[403720288,1769508650882,-272.463,0.00025885,2]
[403720289,1769508650891,-171.154,0.00025885,2]
[403720290,1769508650900,-150.0,0.00025885,2]
[403720291,1769508650910,-150.0,0.00025885,2]
[403720292,1769508650919,-621.488,0.00025885,2]
[403720293,1769508650928,-2831.0,0.000259,3]
[403720294,1769508650937,-505.68,0.000259,2]
[403720295,1769508650946,-378.0,0.00025968,2]
[403720296,1769508650956,-225.23460546,0.00026062,56]
[403720297,1769508650965,-378.0,0.00026067,2]
[403720298,1769508650974,-200.0,0.00026067,2]
[403720299,1769508650983,-378.0,0.00026106,2]
[403720300,1769508650992,-378.0,0.00026138,2]
[403720301,1769508651002,-157.68,0.00026146,2]
[403720302,1769508651011,-5888.0,0.00026179,2]
[403720303,1769508651021,-1066.289933,0.00026179,7]
[403720304,1769508651030,-1066.289933,0.00026179,7]
[403720305,1769508651039,-1066.289933,0.00026179,7]
[403720306,1769508651049,-1066.289933,0.00026179,7]
[403720307,1769508651058,-151.0,0.00026179,7]
[403720308,1769508651067,-503.0,0.00026217,9]
[403720309,1769508651076,-6906.69,0.00026221,2]
[403720310,1769508651086,-150.00248404,0.00026277,30]
[403720311,1769508651095,-275.0,0.00026368,2]
[403720312,1769508651105,-378.0,0.00026382,2]
[403720313,1769508651114,-598.6776317,0.00026427,2]
[403720314,1769508651123,-378.0,0.0002648,2]
[403720315,1769508651133,-2831.0,0.0002654,3]
[403720316,1769508651142,-161.42594505,0.00026598,2]
[403720317,1769508651151,-378.0,0.00026608,2]
[403720318,1769508651160,-1333.0,0.00026638,2]
[403720319,1769508651176,-3477.0,0.00026638,2]
[403720320,1769508651185,-1071.782,0.00026638,2]
[403720321,1769508651194,-1269.0,0.00026638,2]
[403720322,1769508651203,-184.0,0.00026638,2]
[403720323,1769508651212,-378.0,0.00026707,2]
[403720324,1769508651223,-1203.53,0.00026724,2]
[403720325,1769508651232,-916.0,0.00026724,2]
[403720326,1769508651241,-4831.0,0.00026724,2]
[403720327,1769508651252,-2442.0,0.00026724,2]
[403720328,1769508651261,-567.0,0.00026724,2]
[403720329,1769508651270,-378.0,0.00026767,2]
[403720330,1769508651279,-225.23460546,0.00026785,63]
[403720331,1769508651289,-505.68,0.000268,2]
[403720332,1769508651298,-150.0,0.00026811,7]
[403720333,1769508651308,-3584.81800061,0.00026865,14]
[403720334,1769508651317,-8449.89796279,0.00026946,2]
[403720335,1769508651327,-503.0,0.00026964,10]
[403720336,1769508651338,-1546.97,0.00027,7]
[403720337,1769508651348,-293.0,0.00027,2]
[403720338,1769508651361,-216.0,0.00027,7]
[403720339,1769508651370,-169.0,0.00027,7]
[403720340,1769508651381,-2000.0,0.000271,2]
[403720341,1769508651390,-150.0,0.00027123,2]
[403720342,1769508651399,-200.0,0.0002713,2]
[403720343,1769508651409,-378.0,0.00027153,2]
[403720344,1769508651418,-378.0,0.00027172,2]
[403720345,1769508651427,-2831.0,0.0002718,3]
[403720346,1769508651436,-1102.0,0.000272,2]
[403720347,1769508651446,-1000.0,0.00027237,2]
[403720348,1769508651455,-386.87667747,0.00027244,2]
[403720349,1769508651463,-200.0,0.00027262,2]
[403720350,1769508651473,-4850.3862,0.00027365,14]
[403720351,1769508651482,-150.0,0.00027369,2]
[403720352,1769508651491,-582.18073396,0.0002737,2]
[403720353,1769508651500,-500.0,0.00027397,30]
[403720354,1769508651510,-151.0,0.00027397,7]
[403720355,1769508651519,-151.0,0.00027397,7]
[403720356,1769508651528,-151.0,0.00027397,7]
[403720357,1769508651537,-151.0,0.00027397,7]
[403720358,1769508651546,-243.257104,0.00027397,7]
[403720359,1769508651556,-151.0,0.00027397,7]
[403720360,1769508651565,-151.0,0.00027397,7]
[403720361,1769508651575,-151.0,0.00027397,7]
[403720362,1769508651584,-152.758166,0.00027397,7]
[403720363,1769508651593,-152.758166,0.00027397,7]
[403720364,1769508651864,-152.758166,0.00027397,7]
[403720365,1769508651901,-152.758166,0.00027397,7]
[403720366,1769508651911,-152.758166,0.00027397,7]
[403720367,1769508651921,-152.758166,0.00027397,7]
[403720368,1769508651931,-152.758166,0.00027397,7]
[403720369,1769508651942,-152.758166,0.00027397,7]
[403720370,1769508651951,-300.0,0.00027397,2]
[403720371,1769508651960,-801.180384,0.00027397,7]
[403720372,1769508651970,-801.180384,0.00027397,7]
[403720373,1769508651979,-801.180384,0.00027397,7]
[403720374,1769508651988,-801.180384,0.00027397,7]
[403720375,1769508651998,-801.180384,0.00027397,7]
[403720376,1769508652007,-801.180384,0.00027397,7]
[403720377,1769508652018,-801.180384,0.00027397,7]
[403720378,1769508652027,-801.180384,0.00027397,7]
[403720379,1769508652037,-300.0,0.00027397,15]
[403720380,1769508652047,-225.23460546,0.00027508,71]
[403720381,1769508652057,-378.0,0.00027528,2]
[403720382,1769508652068,-378.0,0.00027547,2]
[403720383,1769508652078,-378.0,0.00027549,2]
[403720384,1769508652088,-150.00248404,0.00027585,33]
[403720385,1769508652098,-378.0,0.00027605,2]
[403720386,1769508652107,-551.5,0.00027622,2]
[403720387,1769508652117,-378.0,0.00027637,2]
[403720388,1769508652126,-503.0,0.00027711,11]
[403720389,1769508652136,-770.33,0.00028,7]
[403720390,1769508652146,-505.68,0.00028,2]
[403720391,1769508652156,-225.23460546,0.00028231,79]
[403720392,1769508652167,-503.0,0.00028458,11]
[403720393,1769508652180,-1546.97,0.000285,7]
[403720394,1769508652191,-2831.0,0.000285,3]
[403720395,1769508652200,-1102.0,0.00028561,5]
[403720396,1769508652209,-401.19111454,0.00028613,2]
[403720397,1769508652219,-216.0,0.00028767,14]
[403720398,1769508652230,-150.0,0.00028885,2]
[403720399,1769508652239,-150.0,0.00028885,2]
[403720400,1769508652249,-150.0,0.00028885,2]
[403720401,1769508652258,-150.0,0.00028885,2]
[403720402,1769508652267,-150.0,0.00028885,2]
[403720403,1769508652277,-615.0,0.00028885,2]
[403720404,1769508652286,-150.00248404,0.00028894,37]
[403720405,1769508652295,-225.23460546,0.00028955,86]
[403720406,1769508652304,-150.0,0.00029,2]
[403720407,1769508652313,-1348.56,0.000291,14]
[403720408,1769508652322,-2831.0,0.0002914,3]
[403720409,1769508652332,-2831.0,0.0002914,3]
[403720410,1769508652341,-500.0,0.0002914,2]
[403720411,1769508652350,-500.0,0.0002914,2]
[403720412,1769508652359,-500.0,0.0002914,2]
[403720413,1769508652368,-500.0,0.0002914,2]
[403720414,1769508652377,-500.0,0.0002914,2]
[403720415,1769508652387,-500.0,0.0002914,2]
[403720416,1769508652396,-500.0,0.0002914,2]
[403720417,1769508652405,-500.0,0.0002914,2]